[Event "Croatian Team Cup Final 2022"]
[Site "Vodice"]
[Date "2022.05.21"]
[Round "5.8"]
[White "Loncar, Robert"]
[Black "Kurajica, Bojan"]
[Result "0-1"]
[ECO "A15"]
[WhiteElo "2370"]
[BlackElo "2531"]
[Annotator "TA"]
[PlyCount "70"]
[EventDate "2022.05.18"]
[EventType "team-tourn"]
[EventCountry "CRO"]
[SourceTitle "playchess.com"]
[Source "ChessBase"]
[SourceQuality "1"]
[TimeControl "40/5400+30:1800+30"]

{[%evp 13,70,6,10,4,6,4,12,8,16,2,12,-15,-16,-120,38,28,30,22,43,-53,-47,-46,-46,-63,0,-34,-33,-32,-6,-48,-39,-172,-162,-160,-186,-162,-171,-279,-218,-498,-493,-522,-498,-599,-599,-586,-586,-569,-562,-665,-663,-1395,-1385,-1377,-1287,-1262,-1262,-2714,-2399]} 1. Nf3 {[%emt 0:09:44]} Nf6 {[%emt 0:00:18]} 2. c4 {[%emt 0:00:06]} b6 {[%emt 0:00:51]} 3. g3 {[%emt 0:00:26]} Bb7 {[%emt 0:01:18]} 4. Bg2 {[%emt 0:00:08]} g6 {[%emt 0:01:23]} 5. b3 {[%emt 0:08:34]} Bg7 {[%emt 0:00:25]} 6. Bb2 {[%emt 0:00:05]} O-O {[%emt 0:00:34]} 7. O-O {[%emt 0:00:14]} e6 {[%emt 0:02:35]} 8. Nc3 {[%emt 0:07:23] A15: English Opening: 1...Nf6.} d5 {[%emt 0:00:54]} 9. d4 {[%emt 0:03:30]} Na6 {[%emt 0:08:51]} 10. cxd5 {[%emt 0:05:09] The position is equal.} (10. Ne5 {is interesting.} Ne4 11. e3 c5 12. Qe2) 10... exd5 {[%emt 0:01:59]} 11. Ne5 {[%emt 0:01:45]} c5 {[%emt 0:00:00]} 12. Na4 {[%emt 0:04:59]} Qe7 {[%emt 0:04:37]} 13. dxc5 {[%emt 0:11:50] [#]} (13. Rc1 $11) 13... bxc5 $2 {[%emt 0:02:58]} (13... b5 $1 $17 14. c6 Bc8 15. Nxg6 hxg6) 14. Nd3 {[%emt 0:04:46]} Rfd8 {[%emt 0:28:41]} 15. Rc1 {[%emt 0:01:24][%cal Ra4c5] Prevents c4.} Rac8 {[%emt 0:00:52] [#]} 16. Nf4 $146 {[%emt 0:13:18]} (16. e3 $14) ({Predecessor:} 16. Ba3 Ne4 17. Qe1 Bh6 18. Rc2 Bf8 19. Qa5 Nb4 20. Rxc5 Nc6 21. Rxc6 Qxa3 22. Rxc8 Rxc8 23. Qxa7 {1-0 (38) Dizdarevic,E (2405)-Deze,A (2365) Pula 1984}) 16... d4 $15 {[%emt 0:03:03]} 17. Bxb7 {[%emt 0:03:32]} Qxb7 {[%emt 0:00:10]} 18. Nd3 {[%emt 0:03:10]} Rd5 {[%emt 0:01:28] Black is more active.} (18... Qb5 $15) 19. Nf4 {[%emt 0:04:12]} Rd7 {[%emt 0:11:42]} 20. Nd3 {[%emt 0:01:23][%cal Ra4c5]} Rdc7 {[%emt 0:02:42]} 21. Rc2 {[%emt 0:04:30]} Ne4 {[%emt 0:03:42]} 22. Qc1 {[%emt 0:00:14] Now White is beyond hope.} ({White should try} 22. f3 $15 Nf6 23. e4) 22... Nb4 $19 {[%emt 0:09:51]} 23. Nxb4 {[%emt 0:01:24]} cxb4 {[%emt 0:00:24][%cal Bc5b4,Bb4c3][%mdl 32]} 24. Rxc7 {[%emt 0:00:17]} Rxc7 $40 {[%emt 0:00:19][%cal Bc8c7,Bc7e7,Be7e6][%mdl 160] Black attacks with force.} ({Inferior is} 24... Qxc7 25. Qxc7 Rxc7 26. Rc1 $15) 25. Qf4 {[%emt 0:00:41]} (25. Qd1 {was the only defense.}) 25... Nc3 {[%emt 0:02:14]} 26. Nxc3 {[%emt 0:00:20]} (26. Re1) 26... bxc3 {[%emt 0:00:58] Black is clearly winning.} ({Weaker is} 26... dxc3 27. Bc1 $17) 27. Bc1 {[%emt 0:01:24]} Re7 {[%emt 0:00:24]} 28. Qd6 {[%emt 0:01:58] [#] Threatens to win with Qd8+.} h6 {[%emt 0:03:28]} 29. Re1 {[%emt 0:03:00]} Re6 {[%emt 0:00:43]} 30. Qd8+ {[%emt 0:00:16]} Kh7 {[%emt 0:00:08]} 31. e3 {[%emt 0:02:04]} Qa6 {[%emt 0:02:03]} 32. Rd1 {[%emt 0:03:02] Inhibits d3.} Qe2 {[%emt 0:00:15]} 33. Rf1 {[%emt 0:00:06]} d3 {[%emt 0:00:26][%cal Bd4d3,Bd3d2][%mdl 32]} 34. Qd7 {[%emt 0:00:09]} d2 {[%emt 0:00:33]} 35. Ba3 {[%emt 0:00:16]} c2 {[%emt 0:00:22] Weighted Error Value: White=0.71/Black=0.13 (very precise)} 0-1

[Event "Croatian Team Cup Final 2022"]
[Site "Vodice"]
[Date "2022.05.21"]
[Round "5.10"]
[White "Anic, Darko"]
[Black "Vojak, Daniel"]
[Result "1/2-1/2"]
[ECO "A05"]
[WhiteElo "2390"]
[BlackElo "2335"]
[Annotator "TA"]
[PlyCount "123"]
[EventDate "2022.05.18"]
[EventType "team-tourn"]
[EventCountry "CRO"]
[SourceTitle "playchess.com"]
[Source "ChessBase"]
[SourceQuality "1"]
[TimeControl "40/5400+30:1800+30"]

{[%evp 24,123,0,0,0,0,0,0,0,0,0,0,0,0,0,0,0,0,0,0,0,0,43,0,0,5,0,0,91,93,93,93,93,90,79,6,8,3,3,2,2,3,5,0,7,2,4,2,14,0,0,0,16,0,12,18,18,0,10,14,11,10,10,2,6,15,16,0,0,0,0,0,13,13,13,13,13,13,33,0,0,0,0,0,0,0,0,0,0,0,0,0,0,0,0,0,0,0,0,0,0,0]} 1. Nf3 {[%emt 0:03:01]} Nf6 {[%emt 0:00:08]} 2. c4 {[%emt 0:01:02]} g6 {[%emt 0:00:12]} 3. b3 {[%emt 0:02:40]} Bg7 {[%emt 0:01:06]} 4. Bb2 {[%emt 0:00:11]} O-O {[%emt 0:00:32]} 5. g3 {[%emt 0:00:16]} c5 {[%emt 0:04:26]} 6. Bg2 {[%emt 0:00:29]} Nc6 {[%emt 0:03:08]} 7. O-O {[%emt 0:00:35]} d5 {[%emt 0:02:16]} 8. cxd5 {[%emt 0:12:31]} Nxd5 {[%emt 0:00:15]} 9. Bxg7 {[%emt 0:02:42]} Kxg7 {[%emt 0:00:08]} 10. Qc1 {[%emt 0:06:28]} b6 {[%emt 0:11:34]} 11. d4 {[%emt 0:19:43]} Nxd4 {[%emt 0:07:24]} 12. Nxd4 {[%emt 0:00:17]} cxd4 {[%emt 0:00:06]} 13. Qc4 {[%emt 0:00:14][%csl LRd4,LRd5]} Be6 {[%emt 0:11:17][%cal Od5e3] A05: Réti Opening: 1 Nf3 Nf6.} 14. Qxd4+ {[%emt 0:00:28]} Nf6 {[%emt 0:00:05]} 15. Qb2 {[%emt 0:00:47]} Rc8 {[%emt 0:00:30]} 16. Na3 {[%emt 0:00:20] [#]} Qc7 $146 {[%emt 0:01:44]} ({Predecessor:} 16... Rc7 17. Rad1 Rd7 18. Qa1 Kg8 19. Nb5 Bd5 20. Bxd5 Rxd5 21. Nxa7 Qd7 22. Rxd5 Nxd5 23. Rd1 Ra8 24. e4 Qxa7 25. Rxd5 Qxa2 26. Rd8+ {1-0 (26) Kaiser,W (2355)-Jergler,K (2180) Bayern 1995}) 17. Rac1 {[%emt 0:01:13]} Qb8 {[%emt 0:00:20]} 18. Nb5 {[%emt 0:01:42]} Rfd8 {[%emt 0:04:45]} 19. e3 {[%emt 0:15:31]} Bd5 {[%emt 0:10:06]} 20. Rxc8 {[%emt 0:22:41]} Qxc8 {[%emt 0:00:37]} 21. Rc1 {[%emt 0:02:44]} (21. Nxa7 Qa8 22. e4 Bxe4 23. Bxe4 Qxe4 $17) 21... Qg4 {[%emt 0:03:58]} 22. h3 {[%emt 0:01:12]} Qg5 {[%emt 0:08:10]} 23. Nxa7 {[%emt 0:01:58]} (23. Rd1 $5 {[%cal Rb5c7]}) 23... Bxg2 {[%emt 0:00:57]} 24. Kxg2 {[%emt 0:00:06] Black should prevent Nc6.} Qd5+ {[%emt 0:00:02]} 25. Kg1 {[%emt 0:00:18]} Qh5 {[%emt 0:03:19]} (25... Qd7 $11 {remains equal.} 26. Nc6 Rc8) 26. Nc6 $16 {[%emt 0:00:56][%csl LRd8,LRe7]} Rd6 {[%emt 0:05:11]} 27. Nxe7 {[%emt 0:00:41]} Qxh3 {[%emt 0:00:55]} 28. e4 $1 {[%emt 0:02:12] [#] Hoping for e5.} Qg4 {[%emt 0:07:31]} 29. Nd5 {[%emt 0:01:22] White is more active.} (29. Re1 $16 {e5 is the strong threat.} Qe6 {[#]} 30. Nxg6 $1 (30. Nd5 $2 Rxd5 31. f3 Rd3 $19) (30. e5 Qxe7 31. Rc1 Re6 $11) 30... hxg6 31. e5) 29... Qxe4 $11 {[%emt 0:00:28]} 30. Nxf6 {[%emt 0:00:21]} Rxf6 {[%emt 0:00:05][%mdl 4096] Endgame KQR-KQR} 31. Rc4 {[%emt 0:00:09]} Qe1+ {[%emt 0:00:25]} 32. Kg2 {[%emt 0:00:04]} g5 {[%emt 0:01:15] Against Rf4} 33. Qd4 {[%emt 0:03:04] And now Rc6 would win.} Qe8 {[%emt 0:03:00] Prevents Rc6.} ({Don't play} 33... Kg6 34. Rc8 Re6 35. Rb8 $16) 34. a4 {[%emt 0:00:00]} h6 {[%emt 0:02:15]} 35. Rc3 {[%emt 0:00:00] aiming for Rf3.} Kg6 {[%emt 0:02:22]} 36. Qd3+ {[%emt 0:00:00]} Kg7 {[%emt 0:00:07]} 37. Qd4 {[%emt 0:00:00]} Kg6 {[%emt 0:00:07]} 38. Re3 {[%emt 0:00:00]} Re6 {[%emt 0:00:21]} 39. Qd3+ {[%emt 0:00:00]} Kg7 $1 {[%emt 0:00:10]} 40. Qd4+ {[%emt 0:00:00]} Kg6 {[%emt 0:00:00]} 41. Rxe6+ {[%emt 0:07:53]} Qxe6 {[%emt 0:02:00] KQ-KQ} 42. b4 {[%emt 0:00:18] Black must now prevent a5.} Qc6+ {[%emt 0:00:44]} 43. Kh2 {[%emt 0:00:07]} Qxa4 {[%emt 0:00:45]} 44. Qxb6+ {[%emt 0:00:05]} f6 $1 {[%emt 0:00:10]} 45. b5 {[%emt 0:00:53]} h5 $1 {[%emt 0:00:51][%cal Bh6h5,Bh5h4][%mdl 32]} 46. Qc6 {[%emt 0:02:09]} h4 {[%emt 0:01:06]} 47. Qe8+ {[%emt 0:00:36]} Kh6 {[%emt 0:00:25]} 48. Qh8+ {[%emt 0:05:32]} Kg6 {[%emt 0:00:08]} 49. Qg8+ {[%emt 0:00:06]} Kh6 {[%emt 0:00:28]} (49... Kf5 $2 50. Qd5+ Kg6 51. b6 $18) 50. Qd5 {[%emt 0:00:23] Strongly threatening b6.} hxg3+ {[%emt 0:00:08]} 51. fxg3 {[%emt 0:00:20]} (51. Kxg3 $5 {[%cal Rb5b6]} Qb4 52. Kf3 $14) 51... Qc2+ {[%emt 0:00:24] The position is equal.} 52. Qg2 {[%emt 0:01:14]} Qb1 {[%emt 0:00:43]} 53. Qc6 {[%emt 0:00:40]} Kh5 {[%emt 0:02:38]} 54. Qe8+ {[%emt 0:07:18]} Kh6 {[%emt 0:00:55]} 55. Qh8+ {[%emt 0:01:56]} Kg6 {[%emt 0:00:06]} 56. Qg8+ {[%emt 0:00:08]} Kh6 {[%emt 0:00:43]} 57. Qh8+ $1 {[%emt 0:01:10]} Kg6 {[%emt 0:00:06]} 58. Qe8+ {[%emt 0:01:23]} Kh6 {[%emt 0:00:07]} 59. Qc6 {[%emt 0:03:23]} Kh5 {[%emt 0:01:19]} 60. Qe8+ {[%emt 0:00:35]} Kh6 {[%emt 0:02:03]} 61. Qc6 {[%emt 0:00:25]} Kh5 {[%emt 0:00:02]} 62. b6 {Weighted Error Value: White=0.06 (flawless) /Black=0.05 (flawless)} 1/2-1/2

[Event "Croatian Team Cup Final 2022"]
[Site "Vodice"]
[Date "2022.05.21"]
[Round "5.11"]
[White "Cupic, Lovro"]
[Black "Biti, Ozren"]
[Result "1-0"]
[ECO "C41"]
[WhiteElo "2271"]
[BlackElo "2334"]
[Annotator "TA"]
[PlyCount "63"]
[EventDate "2022.05.18"]
[EventType "team-tourn"]
[EventCountry "CRO"]
[SourceTitle "playchess.com"]
[Source "ChessBase"]
[SourceQuality "1"]
[TimeControl "40/5400+30:1800+30"]

{[%evp 18,63,44,50,58,37,36,34,51,39,73,85,79,86,110,90,151,135,144,133,154,133,133,127,129,121,179,169,178,158,379,387,341,333,734,744,730,740,731,716,1372,1354,1289,1307,1268,941,29990,29991]} 1. e4 {[%emt 0:01:35]} d6 {[%emt 0:00:08]} 2. d4 {[%emt 0:00:12]} Nf6 {[%emt 0:00:10]} 3. Nc3 {[%emt 0:00:06]} e5 {[%emt 0:00:25]} 4. Nf3 {[%emt 0:00:07]} Nbd7 {[%emt 0:00:14]} 5. Bc4 {[%emt 0:00:08]} Be7 {[%emt 0:00:10]} 6. a4 {[%emt 0:00:08]} O-O {[%emt 0:01:04]} 7. O-O {[%emt 0:00:31]} a5 {[%emt 0:00:35]} 8. Re1 {[%emt 0:02:10]} c6 {[%emt 0:00:30] 8...b6 is not played anymore.} 9. h3 {[%emt 0:02:44]} h6 {[%emt 0:01:19]} 10. Be3 {[%emt 0:02:04]} Re8 {[%emt 0:01:32] C41: Philidor Defence.} 11. Qd3 {[%emt 0:05:37] [#]} exd4 $146 {[%emt 0:13:36]} ({Predecessor:} 11... Qc7 12. Rad1 exd4 13. Qxd4 Ne5 14. Nxe5 dxe5 15. Qb6 Qxb6 16. Bxb6 Bb4 17. Re3 Be6 18. Bxe6 Rxe6 {1-0 (67) Preotu,R (2452)-Sambuev,B (2532) Kitchener 2015}) 12. Bxd4 {[%emt 0:00:10]} Bf8 {[%emt 0:20:31] White is slightly better.} 13. Rad1 {[%emt 0:06:26]} Qc7 {[%emt 0:07:41]} 14. Nd2 {[%emt 0:07:49] White is much more active.} Ne5 {[%emt 0:05:14]} 15. Qg3 {[%emt 0:00:59]} g5 {[%emt 0:11:21]} 16. Be2 {[%emt 0:01:25] Against Nh5. Strongly threatening f4.} Nh7 {[%emt 0:02:01]} ({Better is} 16... Bg7) 17. f4 {[%emt 0:19:16]} Ng6 {[%emt 0:00:34]} 18. fxg5 {[%emt 0:02:02]} hxg5 {[%emt 0:10:39]} 19. Nf3 {[%emt 0:01:05]} Qe7 {[%emt 0:05:25]} 20. Bc4 {[%emt 0:04:10]} Ne5 {[%emt 0:02:15]} 21. Bb3 $36 {[%emt 0:04:48][%mdl 2048] White has strong initiative.} Kh8 {[%emt 0:03:44]} (21... Bg7 $16) 22. Rf1 $18 {[%emt 0:00:57][%cal Ob3f7,Be1f1,Bf1f4,Bf4h4][%mdl 32] aiming for Bxf7!} f6 {[%emt 0:00:37] [#]} 23. Nh4 $1 {[%emt 0:00:09][%mdl 512] And now Bxe5 would win.} Bg7 $2 {[%emt 0:05:49] [#] This costs Black the game.} (23... Qg7 $16 {keeps fighting.}) (23... Qc7 24. Nf5) 24. Qxe5 $3 {[%emt 0:00:53][%cal Rh4g6][%mdl 512]} gxh4 {[%emt 0:00:26]} 25. Qh5 {[%emt 0:00:19] Rf4 is the strong threat.} Bd7 $2 {[%emt 0:06:12]} (25... Be6 26. Bxe6 Qxe6 27. Qxh4 Kg8) 26. Rf4 {[%emt 0:07:00]} f5 {[%emt 0:00:22]} 27. Bxg7+ {[%emt 0:00:43]} Qxg7 {[%emt 0:00:48]} 28. Rxd6 {[%emt 0:00:33][%cal Bd1d6,Bd6h6,Bh6h7][%mdl 32]} Re7 {[%emt 0:00:31]} 29. Rxh4 {[%emt 0:04:19]} Rf8 {[%emt 0:00:27]} 30. Rh6 {[%emt 0:06:03]} f4 {[%emt 0:00:31]} 31. Qc5 {[%emt 0:00:45]} f3 {[%emt 0:00:37]} 32. Rxh7+ {[%emt 0:00:11] Weighted Error Value: White=0.07 (flawless) /Black=0.67} 1-0

[Event "Croatian Team Cup Final 2022"]
[Site "Vodice"]
[Date "2022.05.21"]
[Round "5.12"]
[White "Jusic, Zdenko"]
[Black "Novosel, Lovro"]
[Result "0-1"]
[ECO "B23"]
[WhiteElo "2236"]
[BlackElo "2279"]
[Annotator "TA"]
[PlyCount "88"]
[EventDate "2022.05.18"]
[EventType "team-tourn"]
[EventCountry "CRO"]
[SourceTitle "playchess.com"]
[Source "ChessBase"]
[SourceQuality "1"]
[TimeControl "40/5400+30:1800+30"]

{[%evp 9,88,-4,1,-14,15,-35,-26,-13,-12,-27,0,-25,-12,-37,-8,-15,-5,-22,33,0,72,10,31,23,13,16,35,18,58,66,61,43,72,0,0,-44,-32,-108,-108,-101,-94,-172,-163,-169,-9,-130,-137,-137,-142,-219,-231,-225,-227,-350,-302,-435,-412,-516,-495,-1166,-1172,-6383,-1835,-5904,-1832,-1733,-1652,-2845,-989,-995,-970,-5365,-5722,-29945,-6299,-2884,-990,-29978,-29979,-6495,-1942]} 1. e4 {[%emt 0:07:34]} c5 {[%emt 0:03:35]} 2. Nc3 {[%emt 0:00:28]} a6 {[%emt 0:00:14]} 3. f4 {[%emt 0:00:33]} b5 {[%emt 0:00:57]} 4. d3 {[%emt 0:03:58]} Bb7 {[%emt 0:00:46]} 5. Nf3 {[%emt 0:01:06]} e6 {[%emt 0:00:48]} 6. Be2 {[%emt 0:01:08] B23: Closed Sicilian: Lines without g3.} d6 {[%emt 0:01:15] [#]} (6... d5 {seems wilder.} 7. f5 dxe4 8. fxe6 exf3 9. exf7+ Kxf7 10. Bxf3 Nc6) 7. g4 $146 {[%emt 0:10:37]} (7. O-O $11) ({Predecessor:} 7. O-O Qc7 8. f5 exf5 9. exf5 Nf6 10. Qe1 Be7 11. Ng5 O-O 12. Qg3 Nc6 13. Nce4 {0-1 (39) Schmidt,N (1607)-Fabregas,O (1907) Playchess.com INT 2021}) 7... Nf6 {[%emt 0:04:15]} 8. g5 {[%emt 0:00:53] Black has an edge.} Nfd7 {[%emt 0:00:07]} 9. Be3 {[%emt 0:01:19]} b4 {[%emt 0:01:15]} 10. Nb1 {[%emt 0:03:45]} Nc6 {[%emt 0:01:51]} 11. O-O {[%emt 0:03:03]} Be7 {[%emt 0:00:40]} 12. Qe1 {[%emt 0:00:19]} Qc7 {[%emt 0:06:58]} 13. a3 {[%emt 0:06:07]} g6 {[%emt 0:19:39]} ({Black should try} 13... d5 $11) 14. Nbd2 {[%emt 0:01:44]} Nb6 {[%emt 0:00:32]} (14... d5 $11) 15. c3 {[%emt 0:01:59]} ({Better is} 15. axb4 $16 Nxb4 16. Qb1) 15... bxc3 $11 {[%emt 0:00:36]} 16. bxc3 {[%emt 0:00:22]} d5 {[%emt 0:15:58]} 17. Qf2 {[%emt 0:01:22]} Nd7 {[%emt 0:04:35]} 18. Rab1 {[%emt 0:08:06]} dxe4 {[%emt 0:04:41]} 19. dxe4 {[%emt 0:00:19]} Na5 {[%emt 0:01:14]} 20. c4 {[%emt 0:11:08]} O-O {[%emt 0:01:18] [#]} 21. e5 {[%emt 0:03:03]} (21. h4 $1 $16) 21... Rab8 {[%emt 0:07:19]} 22. Bd3 {[%emt 0:04:30]} Rfd8 {[%emt 0:00:40]} 23. Bc2 {[%emt 0:07:44]} (23. Rfc1 $15) 23... Nb6 $17 {[%emt 0:02:10][%cal Bd7b6,Bb6a4,Ba4c5][%mdl 32]} 24. Qe2 {[%emt 0:00:18]} Nc6 {[%emt 0:01:41]} 25. Ne4 {[%emt 0:09:11] [#]} (25. Be4 $17) 25... Nd4 $1 $19 {[%emt 0:00:35]} 26. Bxd4 {[%emt 0:00:16]} Bxe4 $2 {[%emt 0:01:00]} (26... cxd4 $19 27. Nfd2 Bxe4 28. Bxe4 Na4 29. Rxb8 Rxb8) 27. Bxe4 {[%emt 0:05:23]} ({Of course not} 27. Qxe4 cxd4 28. Bd3 (28. Nxd4 $2 Rxd4 29. Qe2 Nxc4 $19) 28... Na4 29. Rxb8 (29. Nxd4 $2 Nc3 $19) 29... Rxb8 $19) (27. Be3 $11 {keeps the balance.} Qc6 28. Bxe4 Qxe4 29. Nd2) 27... cxd4 $17 {[%emt 0:00:05] Black continues to play with concentration.} 28. Bd3 {[%emt 0:00:22]} Na4 {[%emt 0:01:50] White must now prevent ...Nc3.} 29. Rxb8 {[%emt 0:01:30]} (29. Qc2 $17 Qa5 30. Kg2 (30. Rxb8 $2 Rxb8 31. Qd2 Qc3 $19)) 29... Rxb8 $19 {[%emt 0:00:06]} 30. Qc2 {[%emt 0:02:40]} Qa5 {[%emt 0:00:34]} ({Stronger than} 30... Qd7 31. Rb1 Rxb1+ 32. Qxb1 $17) 31. Kh1 {[%emt 0:03:48]} (31. Qd2 {is a better defense.} Qc3 32. Qxc3 dxc3 33. Kg2) 31... Rb2 {[%emt 0:00:26]} 32. Qd1 {[%emt 0:00:20]} (32. Qc1 {was the only defense.}) 32... Nc5 {[%emt 0:00:54]} 33. Bb1 {[%emt 0:01:00]} Qxa3 {[%emt 0:02:16]} 34. Qxd4 {[%emt 0:00:17] [#]} (34. Nxd4 $142 Qc3 35. Bc2) 34... Rxb1 $1 {[%emt 0:00:16][%mdl 512]} 35. Rxb1 {[%emt 0:00:20]} (35. Qg1 Rxf1) 35... Qxf3+ {[%emt 0:00:07]} 36. Kg1 {[%emt 0:00:07]} Nb3 {[%emt 0:00:26]} (36... Nd3 $142 37. Rf1 Qe2) 37. Rxb3 {[%emt 0:01:28]} Qxb3 {[%emt 0:00:05]} 38. Qa7 {[%emt 0:00:12]} Qb1+ {[%emt 0:00:55]} 39. Kg2 {[%emt 0:00:17]} Qa2+ {[%emt 0:00:16]} 40. Kg3 {[%emt 0:00:00]} Qa3+ {[%emt 0:00:00]} 41. Kg4 {[%emt 0:00:17]} Kg7 {[%emt 0:00:33]} 42. Qd7 {[%emt 0:01:18]} Qc5 {[%emt 0:00:57] ( -> ...Qg1+)} 43. h4 {[%emt 0:00:30]} Qg1+ {[%emt 0:00:11]} 44. Kf3 {[%emt 0:00:06]} Bc5 {[%emt 0:00:24] Weighted Error Value: White=1.21/Black=0.52} 0-1

[Event "Croatian Team Cup Final 2022"]
[Site "Vodice"]
[Date "2022.05.21"]
[Round "5.13"]
[White "Skuhala, Jernej"]
[Black "Plenkovic, Zdenko"]
[Result "1-0"]
[ECO "B33"]
[WhiteElo "2378"]
[BlackElo "2375"]
[Annotator "TA"]
[PlyCount "81"]
[EventDate "2022.05.18"]
[EventType "team-tourn"]
[EventCountry "CRO"]
[SourceTitle "playchess.com"]
[Source "ChessBase"]
[SourceQuality "1"]
[TimeControl "40/5400+30:1800+30"]

{[%evp 15,81,17,39,43,27,15,37,15,8,14,20,16,107,109,111,104,162,179,173,133,146,134,131,91,97,0,-7,0,-1,0,0,-1,0,0,106,101,114,97,160,189,202,208,204,178,156,212,195,195,189,82,83,77,284,281,278,276,458,461,459,451,437,425,394,405,804,795,785,772]} 1. e4 {[%emt 0:00:04]} c5 {[%emt 0:00:05]} 2. Nf3 {[%emt 0:00:07]} Nc6 {[%emt 0:00:04]} 3. d4 {[%emt 0:00:06]} cxd4 {[%emt 0:00:03]} 4. Nxd4 {[%emt 0:00:09]} Qb6 {[%emt 0:00:02]} 5. Nb3 {[%emt 0:00:24]} Nf6 {[%emt 0:00:12]} 6. Nc3 {[%emt 0:01:47]} e6 {[%emt 0:00:18]} 7. Be3 {[%emt 0:04:34]} Qc7 {[%emt 0:00:15]} 8. Bd3 {[%emt 0:05:13]} a6 {[%emt 0:02:00]} 9. f4 {[%emt 0:05:22] B33: Sicilian: Pelikan and Sveshnikov Variations.} b5 {[%emt 0:12:38]} 10. e5 {[%emt 0:15:20]} (10. O-O $5 {[%cal Re4e5]}) 10... b4 $1 {[%emt 0:00:17]} 11. Ne4 {[%emt 0:00:30] White is slightly better.} (11. Na4 $5 {[%cal Re5f6]} Nd5 12. Qf3 $14) 11... Nxe4 {[%emt 0:04:54]} 12. Bxe4 {[%emt 0:00:16]} Bb7 {[%emt 0:08:35]} 13. Nc5 {[%emt 0:06:31] [#]} Be7 $146 {[%emt 0:15:21]} (13... Bxc5 $11 14. Bxc5 Rc8) ({Predecessor:} 13... Bxc5 14. Bxc5 Rc8 15. Qd6 Qxd6 16. Bxd6 Na5 17. Bxb7 Nxb7 18. Bxb4 Rxc2 19. O-O d5 20. exd6 {1-0 (64) Nukin,A (2352)-Kozlovsky,A (2340) Tomsk 2012}) 14. Nxb7 $16 {[%emt 0:01:36] 0x0.001a2c288041dp-1022s more active pieces. The black rooks are badly placed.} Qxb7 {[%emt 0:00:50]} 15. Qd3 {[%emt 0:03:54]} f5 {[%emt 0:07:39]} (15... a5 $16) 16. exf6 $18 {[%emt 0:01:25]} gxf6 {[%emt 0:07:41]} 17. f5 {[%emt 0:12:17]} (17. Bxh7 f5 $16) 17... d5 {[%emt 0:08:10]} 18. Bf3 {[%emt 0:00:06]} O-O-O {[%emt 0:03:32]} 19. Be2 {[%emt 0:02:25]} e5 {[%emt 0:02:11]} 20. Qxa6 {[%emt 0:03:00]} (20. Bf2 $16) 20... Qxa6 $11 {[%emt 0:02:22]} 21. Bxa6+ {[%emt 0:00:02]} Kc7 {[%emt 0:00:06]} 22. Be2 {[%emt 0:00:49]} Ra8 {[%emt 0:00:50]} 23. g4 {[%emt 0:02:05]} d4 {[%emt 0:05:54]} 24. Bh6 {[%emt 0:01:16]} b3 {[%emt 0:00:25]} (24... Bf8 $11 {keeps the balance.} 25. Bxf8 Rhxf8) 25. cxb3 $16 {[%emt 0:00:41]} e4 {[%emt 0:00:25] Prevents Bf3.} 26. Bc4 {[%emt 0:02:00]} Nb4 {[%emt 0:02:50] Prevents Bd5.} (26... Kb6 $142) 27. Kd2 {[%emt 0:01:15]} Nxa2 {[%emt 0:04:04]} 28. Bd5 {[%emt 0:01:03][%csl LRa8,LRe4]} e3+ {[%emt 0:00:05]} 29. Ke2 {[%emt 0:00:09] Strongly threatening b4.} Ra5 {[%emt 0:01:47]} 30. Bc4 {[%emt 0:00:58] This bishop pair is nice.} Rha8 {[%emt 0:03:26][%cal Oa2c3] [#]} 31. Rad1 $1 {[%emt 0:00:08]} Rd8 {[%emt 0:00:48]} 32. Rhf1 {[%emt 0:03:23]} (32. Bf4+ $18 {is more deadly.} Kc6 33. Ra1) 32... Nb4 {[%emt 0:00:43]} 33. g5 $36 {[%emt 0:00:50][%mdl 2048] g6 is the strong threat. White is really pushing.} fxg5 {[%emt 0:04:29] Black cannot hold the game after this.} (33... Ra2 $16 {is a better defense.}) 34. f6 $18 {[%emt 0:00:17][%cal Bf5f6,Bf6f7][%mdl 32]} Bc5 {[%emt 0:00:03] White must now prevent ...Ra2.} 35. Rf5 {[%emt 0:04:52] Threatens to win with f7.} ({Weaker is} 35. Bxg5 Ra2 $16) 35... Kb6 $2 {[%emt 0:00:04]} (35... d3+ 36. Bxd3 Nc6) 36. f7 {[%emt 0:00:14]} Ra2 {[%emt 0:00:43]} 37. Rb1 {[%emt 0:00:23][%cal Of5c5] Hoping for Rxc5!} d3+ {[%emt 0:01:56]} 38. Kf3 {[%emt 0:01:14][%cal Of5c5] aiming for Rxc5!} g4+ {[%emt 0:01:49]} 39. Kxg4 {[%emt 0:00:22][%cal Of5c5] And now Rxc5! would win. Really sharp!} ({Much less strong is} 39. Ke4 Raa8 40. Rf6+ Kc7 41. Bxe3 Bxe3 $18) 39... Nc2 {[%emt 0:01:15] [#]} (39... Rd4+ $2 40. Kf3 Ra7 41. f8=Q $18) (39... Raa8 $142 40. Rxc5 Kxc5) 40. Rxc5 $1 {[%emt 0:00:00][%mdl 512]} Kxc5 {[%emt 0:00:00] [#]} 41. Bxd3 $1 {[%emt 0:00:52][%mdl 512] Weighted Error Value: White=0.14 (very precise) /Black=0.33} 1-0